bitfinex/quotes_SOLUSD_20250401
["timestamp","ask_amount","ask_price","bid_price","bid_amount"]
[1743471446033,0.34732314,124.39,124.34,7.44]
[1743471446446,0.14216157,124.37,124.34,7.44]
[1743471446645,0.28432314,124.37,124.34,7.44]
[1743471447145,27.036472,124.39,124.34,7.44]
[1743471447347,0.063,124.39,124.34,41.8159]
[1743471447525,0.063,124.39,124.38,8.0398]
[1743471449033,0.063,124.39,124.35,1.5558]
[1743471449423,0.063,124.39,124.36,8.0411]
[1743471449827,0.063,124.39,124.35,1.5558]
[1743471453030,0.063,124.39,124.34,13.6677]
[1743471453559,0.063,124.39,124.34,7.44]
[1743471454056,0.20516157,124.39,124.34,7.44]
[1743471454651,0.20516157,124.39,124.32,1.5073]
[1743471454853,0.20516157,124.39,124.33,8.0463505]
[1743471455426,0.063,124.39,124.33,8.0463505]
[1743471462855,0.063,124.39,124.34,20.0]
[1743471463056,0.063,124.39,124.34,27.44]
[1743471463933,0.063,124.39,124.34,7.44]
[1743471466250,18.996972,124.39,124.33,0.6063505]
[1743471467451,0.34732314,124.39,124.33,0.6063505]
[1743471470464,18.996972,124.39,124.33,0.6063505]
[1743471472267,18.933972,124.37,124.33,0.6063505]
[1743471474158,0.28432314,124.37,124.33,0.6063505]
[1743471475166,18.933972,124.37,124.33,0.6063505]
[1743471476463,0.28432314,124.37,124.33,0.6063505]
[1743471480473,18.996972,124.39,124.33,0.6063505]
[1743471481380,0.34732314,124.39,124.33,8.0463505]
[1743471490976,0.34732314,124.39,124.33,0.6063505]
[1743471490977,18.996972,124.39,124.33,0.6063505]
[1743471491162,0.34732314,124.39,124.33,0.6063505]
[1743471498083,0.063,124.39,124.35,20.0]
[1743471498385,0.063,124.39,124.36,7.44]
[1743471498858,0.063,124.39,124.37,6.6431]
[1743471512787,0.063,124.39,124.36,9.0869]
[1743471516797,0.063,124.39,124.37,20.0]
[1743471517004,0.063,124.39,124.37,27.42]
[1743471518295,0.063,124.39,124.38,18.64964886]
[1743471518498,0.063,124.39,124.38,24.82411043]
[1743471520001,0.063,124.39,124.38,24.68194886]
[1743471524522,0.063,124.39,124.36,18.64964886]
[1743471524678,0.063,124.39,124.35,6.153]
[1743471524679,0.063,124.39,124.33,2.1907505]
[1743471524885,0.20516157,124.39,124.34,7.42]
[1743471528209,0.20516157,124.39,124.35,20.0]
[1743471528508,0.20516157,124.39,124.35,27.42]
[1743471529786,0.20516157,124.39,124.36,8.0411]
[1743471535116,0.20516157,124.39,124.36,28.144]
[1743471548821,0.20516157,124.39,124.38,20.0]
[1743471548822,0.063,124.39,124.38,20.0]
[1743471549127,0.28432314,124.43,124.36,28.144]
[1743471549804,0.28432314,124.43,124.36,8.0411]
[1743471550005,18.933972,124.43,124.36,8.0411]
[1743471551128,26.970872,124.43,124.36,8.0411]
[1743471554915,26.970872,124.43,124.35,15.4615]
[1743471555116,26.970872,124.43,124.36,7.42]
[1743471555344,47.062472,124.43,124.36,7.42]
[1743471557935,47.125472,124.43,124.36,7.42]
[1743471561944,58.764518,124.43,124.36,7.42]
[1743471562630,58.764518,124.43,124.35,8.0418]
[1743471565137,0.28432314,124.41,124.35,8.0418]
[1743471565534,0.14216157,124.39,124.35,8.0418]
[1743471565718,0.14216157,124.39,124.34,15.4621]
[1743471565920,18.933972,124.39,124.33,0.6063505]
[1743471566124,109.54582248,124.39,124.33,0.6063505]
[1743471566323,18.933972,124.37,124.33,0.6063505]
[1743471567742,0.14216157,124.35,124.33,0.6063505]
[1743471572748,0.14216157,124.34,124.33,0.6063505]
[1743471572950,0.14216157,124.35,124.33,0.6063505]
[1743471575848,0.14216157,124.36,124.33,0.6063505]
[1743471576350,0.14216157,124.37,124.33,0.6063505]
[1743471576654,0.14216157,124.37,124.33,8.6493505]
[1743471578654,0.14216157,124.38,124.33,8.6493505]
[1743471582330,0.20516157,124.39,124.33,28.7570505]
[1743471582537,0.34732314,124.39,124.33,28.7570505]
[1743471583354,0.34732314,124.39,124.34,7.42]
[1743471583560,0.34732314,124.39,124.35,8.0418]
[1743471585760,18.996972,124.39,124.34,7.42]
[1743471585960,27.036272,124.39,124.34,7.42]
[1743471588058,38.667043,124.39,124.33,8.6493505]
[1743471589760,58.765043,124.39,124.33,8.6493505]
[1743471593666,58.765043,124.39,124.33,0.6063505]
[1743471596671,57.765043,124.39,124.33,0.6063505]
[1743471598469,20.0,124.36,124.33,0.6063505]
[1743471598773,18.933972,124.35,124.33,0.6063505]
[1743471599075,8.18456157,124.34,124.33,0.6063505]
[1743471600365,0.14216157,124.34,124.33,0.6063505]
[1743471602173,9.31185048,124.38,124.33,0.6063505]
[1743471602369,18.933972,124.37,124.33,0.6063505]
[1743471602676,18.933972,124.37,124.33,8.6493505]
[1743471603772,26.974472,124.37,124.33,8.6493505]
[1743471607075,26.974472,124.37,124.33,0.6063505]
[1743471608071,26.974472,124.37,124.33,8.6493505]
[1743471608576,26.974472,124.37,124.33,0.6063505]
[1743471610283,26.974472,124.37,124.33,8.6493505]
[1743471610474,18.933972,124.37,124.33,8.6493505]
[1743471610675,26.974572,124.37,124.33,8.6493505]
[1743471611074,26.974572,124.37,124.33,0.6063505]
[1743471614373,36.28642248,124.37,124.33,0.6063505]
[1743471614567,56.38772248,124.37,124.33,0.6063505]
[1743471618691,18.933972,124.33,124.27,7.9462]
[1743471618897,38.79181043,124.32,124.27,7.9462]
[1743471619082,45.27487206,124.32,124.27,7.9462]
[1743471619475,53.31917206,124.32,124.27,7.9462]
[1743471619888,53.31917206,124.32,124.24,23.1835]
[1743471623202,0.14216157,124.31,124.24,15.1348]
[1743471623374,0.14216157,124.31,124.24,23.1836]
[1743471624378,0.14216157,124.31,124.24,15.1348]
[1743471625296,0.14216157,124.29,124.24,15.1348]
[1743471626203,0.28432314,124.29,124.24,15.1348]
[1743471626598,0.28432314,124.29,124.24,7.7348]
[1743471627208,0.28432314,124.29,124.24,0.03]
[1743471627209,18.933972,124.29,124.24,0.03]
[1743471627393,0.14216157,124.25,124.24,0.03]
[1743471627710,0.28432314,124.25,124.24,0.03]
[1743471627881,20.0,124.22,124.2,0.03]
[1743471629288,0.14216157,124.21,124.2,0.03]
[1743471629494,0.28432314,124.21,124.2,0.03]
[1743471633179,20.28432314,124.21,124.2,0.03]
[1743471635108,38.933972,124.21,124.2,0.03]
[1743471643318,18.996972,124.24,124.2,0.03]
[1743471643531,23.03084308,124.24,124.2,0.03]
[1743471644103,20.0,124.21,124.2,0.03]
[1743471654621,20.28432314,124.21,124.2,0.03]
[1743471654826,38.933972,124.21,124.2,0.03]
[1743471658232,20.0,124.21,124.2,0.03]
[1743471660620,20.0,124.21,124.2,7.43]
[1743471660822,0.063,124.24,124.2,7.43]
[1743471661126,20.0,124.22,124.2,7.43]
[1743471662047,0.063,124.24,124.2,7.43]
[1743471664028,20.0,124.23,124.2,9.0145]
[1743471664207,0.063,124.24,124.2,9.0145]
[1743471664413,0.063,124.24,124.21,18.79181043]
[1743471665534,0.063,124.24,124.2,9.0145]
[1743471675719,20.063,124.24,124.21,7.4]
[1743471677234,0.063,124.24,124.21,7.4]
[1743471677631,0.063,124.24,124.2,0.03]
[1743471677827,0.063,124.24,124.21,7.4]
[1743471678019,0.063,124.24,124.2,0.03]
[1743471678218,0.063,124.24,124.21,7.4]
[1743471680443,0.063,124.24,124.2,0.03]
[1743471680623,20.0,124.23,124.21,7.4]
[1743471685950,20.0,124.23,124.2,0.03]
[1743471686129,20.0,124.23,124.21,7.4]
[1743471687443,20.0,124.22,124.21,7.4]
[1743471687950,20.0,124.23,124.21,7.4]
[1743471688450,20.0,124.23,124.21,7.43]
[1743471692831,0.063,124.24,124.21,7.43]
[1743471692832,20.0,124.22,124.21,7.43]
[1743471693231,20.0,124.22,124.21,7.41]
[1743471693645,28.1119,124.24,124.21,7.41]
[1743471693948,20.0,124.22,124.21,7.41]
[1743471694660,28.112,124.24,124.21,7.41]
[1743471695038,28.112,124.24,124.21,0.03]
[1743471695752,20.0,124.22,124.21,0.03]
[1743471696458,19.5,124.22,124.21,0.03]
[1743471696835,0.063,124.24,124.21,0.03]
[1743471698460,20.0,124.23,124.21,0.03]
[1743471698838,20.0,124.22,124.21,0.03]
[1743471701353,20.0,124.23,124.21,0.03]
[1743471702657,0.063,124.24,124.21,0.03]
[1743471702960,20.0,124.22,124.21,0.03]
[1743471711280,0.063,124.24,124.21,0.03]
[1743471713676,0.063,124.22,124.21,0.03]
[1743471745002,0.063,124.22,124.21,1.6248]
[1743471746703,0.063,124.22,124.21,20.27444886]
[1743471746889,0.063,124.22,124.21,28.46741043]
[1743471747485,0.063,124.22,124.21,28.609572]
[1743471751389,0.063,124.22,124.21,29.109572]
[1743471751795,0.063,124.22,124.21,28.609572]
[1743471754004,0.063,124.22,124.21,29.109572]
[1743471755496,0.063,124.22,124.21,30.71867785]
[1743471755680,0.063,124.24,124.23,0.14216157]
[1743471755879,0.063,124.24,124.23,114.380672]
[1743471756081,1.6354,124.33,124.27,20.0]
[1743471756285,1.6354,124.33,124.28,7.36]
[1743471757811,0.28432314,124.36,124.28,7.36]
[1743471757812,1.92522314,124.36,124.28,7.36]
[1743471757982,1.6409,124.36,124.28,7.36]
[1743471758182,1.6409,124.36,124.28,15.2053]
[1743471758608,1.6409,124.36,124.29,18.79181043]
[1743471759896,9.6825,124.36,124.28,15.2053]
[1743471760099,20.0,124.32,124.25,7.8453]
[1743471760291,20.0,124.32,124.26,7.36]
[1743471760603,24.78524886,124.3,124.21,0.03]
[1743471760784,0.28432314,124.29,124.21,7.39]
[1743471760983,24.78524886,124.3,124.21,7.39]
[1743471761180,6.1356,124.3,124.24,20.0]
[1743471761386,1.6409,124.31,124.23,18.79181043]
[1743471763397,1.6409,124.31,124.23,26.84131043]
[1743471764601,7.6636,124.34,124.26,20.0]
[1743471764905,7.6636,124.34,124.27,7.36]
[1743471768214,0.28432314,124.33,124.27,7.36]
[1743471768397,7.6636,124.34,124.27,7.36]
[1743471769329,15.706,124.34,124.27,7.36]
[1743471770004,0.28432314,124.33,124.24,7.8454]
[1743471770316,0.14216157,124.33,124.25,7.36]
[1743471770618,0.28432314,124.33,124.25,7.36]
[1743471774116,18.933972,124.33,124.25,7.36]
[1743471775384,26.977072,124.33,124.25,7.36]
[1743471775591,26.977072,124.33,124.26,7.36]
[1743471779697,26.977072,124.33,124.24,0.03]
[1743471779899,0.14216157,124.29,124.25,7.36]
[1743471782317,10.41849045,124.33,124.25,7.36]
[1743471782522,0.28432314,124.32,124.25,7.36]
[1743471782825,0.14216157,124.32,124.25,7.36]
[1743471783004,7.86876157,124.34,124.25,15.4082]
[1743471783322,0.14216157,124.33,124.25,15.4082]
[1743471783806,0.14216157,124.33,124.26,6.4156]
[1743471784010,1.591,124.34,124.27,18.64964886]
[1743471784622,1.591,124.34,124.27,26.69654886]
[1743471786221,0.063,124.34,124.27,26.69654886]
[1743471789623,0.063,124.34,124.29,18.64964886]
[1743471789929,0.063,124.34,124.3,7.36]
[1743471792325,0.063,124.34,124.32,20.0]
[1743471800122,0.063,124.34,124.3,7.36]
[1743471802827,0.063,124.34,124.28,231.98]
[1743471803036,18.996972,124.34,124.28,231.98]
[1743471803215,18.996972,124.34,124.29,7.34]
[1743471804715,0.14216157,124.32,124.29,7.34]
[1743471806934,8.18586157,124.32,124.29,7.34]
[1743471809039,8.18586157,124.32,124.24,0.03]
[1743471809240,8.18586157,124.32,124.25,7.34]
[1743471809541,8.18586157,124.32,124.24,0.03]
[1743471809724,0.14216157,124.29,124.25,7.34]
[1743471810116,18.933972,124.29,124.25,7.34]
[1743471810742,18.933972,124.29,124.24,7.37]
[1743471810937,18.933972,124.29,124.24,0.03]
[1743471811144,0.14216157,124.27,124.24,0.03]
[1743471812020,0.14216157,124.28,124.24,0.03]
[1743471812220,18.79181043,124.28,124.24,0.03]
[1743471812449,0.14216157,124.27,124.24,0.03]
[1743471813315,0.563,124.34,124.26,20.0]
[1743471813545,0.563,124.34,124.24,0.03]
[1743471813546,1.78196157,124.34,124.27,7.34]
[1743471813849,0.14216157,124.33,124.27,7.34]
[1743471814047,0.14216157,124.32,124.27,7.34]
[1743471814853,20.0,124.3,124.27,7.34]
[1743471815019,0.14216157,124.29,124.27,7.34]
[1743471815215,1.86112314,124.29,124.24,7.37]
[1743471815420,20.0,124.28,124.24,7.37]
[1743471816847,0.14216157,124.27,124.24,7.37]
[1743471821741,1.5768,124.29,124.24,7.37]
[1743471823545,20.19104886,124.32,124.24,7.37]
[1743471823718,0.14216157,124.31,124.24,15.4188]
[1743471824144,0.063,124.28,124.24,15.4188]
[1743471824560,0.063,124.28,124.24,21.5915]
[1743471825735,0.063,124.28,124.24,13.5427]
[1743471825935,0.063,124.28,124.24,21.5916]
[1743471826664,0.063,124.28,124.24,13.5427]
[1743471833761,0.063,124.28,124.24,15.1995]
[1743471835157,0.063,124.28,124.24,23.2483]
[1743471836660,0.063,124.28,124.24,15.1995]
[1743471838061,0.063,124.28,124.24,13.5427]
[1743471841263,0.063,124.28,124.24,7.37]
[1743471842043,0.063,124.28,124.25,7.34]
[1743471842764,0.063,124.28,124.26,7.34]
[1743471856358,0.063,124.28,124.24,0.03]
[1743471856771,0.063,124.28,124.25,7.34]
[1743471862484,0.063,124.28,124.25,15.3881]
[1743471864600,0.063,124.28,124.26,18.64964886]
[1743471865377,0.063,124.28,124.26,25.26544886]
[1743471866904,0.063,124.28,124.26,33.31254886]
[1743471870620,0.063,124.28,124.26,25.26544886]
[1743471870928,0.063,124.28,124.25,8.9657]
[1743471871126,0.063,124.28,124.25,7.34]
[1743471872114,0.063,124.28,124.26,7.34]
[1743471874216,0.063,124.28,124.25,18.64964886]
[1743471874519,0.063,124.28,124.26,7.34]
[1743471877820,0.063,124.28,124.27,7.34]
[1743471887722,0.063,124.28,124.24,0.03]
[1743471887925,0.063,124.28,124.25,7.34]
[1743471888318,0.063,124.28,124.24,0.03]
[1743471888521,0.063,124.28,124.25,7.34]
[1743471890227,0.063,124.28,124.24,0.03]
[1743471890429,0.063,124.28,124.25,7.34]
[1743471898238,0.063,124.28,124.25,15.3882]
[1743471898629,0.063,124.28,124.25,7.34]
[1743471900542,0.063,124.28,124.25,15.3882]
[1743471901034,0.063,124.28,124.25,7.34]
[1743471901637,0.063,124.28,124.25,15.3882]
[1743471902039,0.063,124.28,124.26,18.933972]
[1743471902227,0.063,124.28,124.27,1.94362314]
[1743471902422,0.063,124.28,124.27,48.640172]
[1743471902629,0.063,124.28,124.27,28.640172]
[1743471903242,0.063,124.34,124.33,18.64964886]
[1743471903435,0.063,124.34,124.33,26.273972]
[1743471903639,0.063,124.34,124.33,34.415172]
[1743471903943,0.063,124.35,124.33,54.415172]
[1743471904148,0.063,124.35,124.34,20.25711768]
[1743471904535,0.063,124.35,124.34,28.29951768]
[1743471906027,0.063,124.35,124.34,20.25711768]
[1743471906841,0.063,124.35,124.34,28.29951768]
[1743471907638,0.063,124.37,124.36,0.28432314]
[1743471907847,0.063,124.37,124.36,24.64128339]
[1743471908040,0.063,124.37,124.36,20.54121956]
[1743471908240,0.063,124.39,124.37,38.64964886]
[1743471908441,0.063,124.39,124.38,27.59656199]
[1743471908636,0.063,124.39,124.38,33.86636199]
[1743471908848,0.063,124.39,124.38,41.90616199]
[1743471910361,0.063,124.39,124.38,33.86636199]
[1743471910958,0.063,124.39,124.38,32.25944886]
[1743471914935,0.063,124.41,124.4,20.28432314]
[1743471915855,0.063,124.41,124.4,38.933972]
[1743471918751,0.063,124.44,124.42,0.14216157]
[1743471918946,0.063,124.44,124.42,26.253972]
[1743471922048,0.063,124.44,124.42,34.291172]
[1743471925673,0.063,124.44,124.42,26.253972]
[1743471928467,0.063,124.44,124.42,26.11181043]
[1743471928851,0.063,124.44,124.4,231.78]
[1743471929059,0.063,124.44,124.41,7.32]
[1743471931257,0.063,124.44,124.41,18.64964886]
[1743471931573,0.063,124.44,124.42,7.32]
[1743471933879,0.063,124.44,124.42,34.14901043]
[1743471939375,0.063,124.44,124.42,54.291172]
[1743471940281,0.063,124.44,124.42,55.89754908]
[1743471953878,0.063,124.44,124.42,26.11181043]
[1743471958295,8.0955,124.5,124.42,26.11181043]
[1743471958296,0.063,124.59,124.58,20.0]
[1743471958503,11.44249519,124.61,124.59,0.5]
[1743471958676,0.063,124.66,124.63,20.0]
[1743471958876,0.063,124.66,124.63,27.42]
[1743471959072,0.063,124.66,124.63,20.0]
[1743471959395,0.063,124.66,124.63,27.42]
[1743471959789,0.063,124.66,124.65,20.0]
[1743471960098,0.063,124.66,124.65,48.0224]
[1743471960299,0.063,124.66,124.65,27.52]
[1743471960982,7.8609,124.74,124.65,27.52]
[1743471961181,7.8609,124.74,124.65,50.10414481]
[1743471961801,7.8609,124.74,124.71,12.50302886]
[1743471962008,7.8609,124.74,124.71,9.16982886]
[1743471962800,7.8609,124.74,124.7,7.52]
[1743471963005,6.3077,124.74,124.7,7.52]
[1743471963297,1.6195,124.78,124.7,7.52]
[1743471963298,7.903,124.78,124.7,7.52]
[1743471963497,7.903,124.78,124.71,7.52]
[1743471963975,7.903,124.78,124.73,25.00605772]
[1743471964591,15.9171,124.78,124.73,25.00605772]
[1743471964981,7.903,124.78,124.73,25.00605772]
[1743471965914,15.9171,124.78,124.73,25.00605772]
[1743471966206,15.9171,124.78,124.71,16.58589412]
[1743471966207,15.9171,124.78,124.71,25.00605772]
[1743471966386,20.0,124.78,124.71,25.00605772]
[1743471966585,20.0,124.78,124.7,32.52605772]
[1743471967386,20.0,124.77,124.7,25.00605772]
[1743471967588,20.0,124.73,124.7,25.00605772]
[1743471967888,20.0,124.73,124.71,5.45543196]
[1743471968095,18.933972,124.72,124.71,5.51843196]
[1743471968490,20.14216157,124.72,124.71,5.51843196]
[1743471968708,20.14216157,124.72,124.71,0.063]
[1743471968914,0.14216157,124.72,124.71,0.063]
[1743471972114,38.933972,124.72,124.71,0.063]
[1743471972513,46.951872,124.72,124.71,0.063]
[1743471975418,0.14216157,124.71,124.66,50.01211545]
[1743471975623,0.14216157,124.71,124.65,7.48]
[1743471977003,8.16106157,124.71,124.65,7.48]
[1743471980019,8.16106157,124.71,124.65,7.543]
[1743471980324,8.19106157,124.71,124.65,7.543]
[1743471981316,0.17216157,124.71,124.65,7.543]
[1743471981522,8.19076157,124.71,124.65,7.543]
[1743471982820,28.23726157,124.71,124.65,0.063]
[1743471983010,28.23726157,124.71,124.66,7.44]
[1743471983929,8.19076157,124.71,124.66,7.44]
[1743471984433,0.17216157,124.71,124.66,7.44]
[1743471984598,0.03,124.71,124.66,7.44]
[1743471986044,0.03,124.71,124.69,20.0]
[1743471986535,0.03,124.71,124.7,20.0]
[1743471986842,0.03,124.71,124.7,38.64964886]
[1743471987204,0.03,124.71,124.7,20.0]
[1743471987719,0.03,124.71,124.7,38.64964886]
[1743471989828,0.03,124.71,124.7,128.14821043]
[1743471990132,0.03,124.78,124.74,20.0]
[1743471990434,0.03,124.78,124.75,7.46]
[1743472003418,0.03,124.78,124.76,5.92360027]
[1743472004124,0.03,124.78,124.75,7.46]
[1743472007848,0.03,124.78,124.77,20.0]
[1743472011747,0.03,124.78,124.74,1.5425]
[1743472012046,0.03,124.78,124.75,7.34]
[1743472014147,0.03,124.78,124.77,20.0]
[1743472017530,0.03,124.78,124.77,27.32]
[1743472019433,0.03,124.78,124.77,7.32]
[1743472021953,0.03,124.78,124.77,27.32]
[1743472026046,0.03,124.78,124.77,127.61181043]
[1743472026230,0.03,124.78,124.77,107.61181043]
[1743472026431,0.03,124.78,124.77,143.556172]
[1743472027040,0.03,124.87,124.81,20.0]
[1743472027244,0.03,124.87,124.82,7.3]
[1743472031576,0.03,124.87,124.83,7.3]
[1743472032959,8.0383,124.87,124.83,7.3]
[1743472033163,0.14216157,124.86,124.78,78.84964886]
[1743472033351,0.14216157,124.86,124.79,7.3]
[1743472033661,28.0591,124.87,124.79,7.3]
[1743472033662,27.84342314,124.87,124.79,7.3]
[1743472034058,6.1336,124.85,124.79,7.3]
[1743472034442,1.2726,124.84,124.79,7.3]
[1743472034938,18.64964886,124.83,124.76,7.3]
[1743472035139,28.0403,124.82,124.76,7.3]
[1743472036060,28.0403,124.82,124.73,1.5627]
[1743472036363,28.0403,124.82,124.76,7.3]
[1743472036741,6.41202314,124.79,124.71,0.063]
[1743472036935,0.28432314,124.77,124.72,7.3]
[1743472037153,1.2726,124.78,124.72,7.3]
[1743472037540,6.41202314,124.79,124.72,7.3]
[1743472037750,6.1277,124.79,124.72,7.3]
[1743472039164,14.1415,124.79,124.72,7.3]
[1743472041262,6.1277,124.79,124.72,7.3]
[1743472041859,1.55692314,124.81,124.72,15.3178]
[1743472042041,14.2293,124.82,124.75,20.0]
[1743472042240,14.2293,124.82,124.76,7.3]
[1743472042241,6.2176,124.82,124.76,7.3]
[1743472042441,9.2831,124.84,124.76,7.3]
[1743472049679,6.59652314,124.85,124.77,18.64964886]
[1743472049680,14.3219,124.85,124.77,18.64964886]
[1743472049876,8.0092,124.86,124.77,18.64964886]
[1743472050173,0.03,124.87,124.81,1.5166]
[1743472050382,0.03,124.87,124.82,7.3]
[1743472053268,0.03,124.87,124.84,0.28432314]
[1743472053569,0.03,124.87,124.83,18.64964886]
[1743472055065,0.03,124.87,124.82,88.8]
[1743472055545,0.03,124.87,124.82,7.3]
[1743472059177,20.0,124.85,124.81,0.063]
[1743472059379,0.28432314,124.85,124.81,0.063]
[1743472061177,8.0102,124.84,124.81,0.063]
[1743472061676,28.0358,124.84,124.81,0.063]
[1743472063871,20.0,124.82,124.81,0.063]
[1743472065180,20.0,124.82,124.76,7.3]
[1743472065478,8.0121,124.81,124.75,1.5363]
[1743472065660,8.0121,124.81,124.76,7.3]
[1743472067488,8.0108,124.83,124.76,7.3]
[1743472069989,8.0102,124.84,124.76,15.3152]
[1743472071986,8.0089,124.86,124.8,20.0]
[1743472072177,8.0386,124.87,124.81,8.9542]
[1743472072376,0.03,124.87,124.82,7.3]
[1743472078187,8.0089,124.86,124.82,7.3]
[1743472079672,8.0385,124.87,124.82,7.3]
[1743472080382,0.03,124.87,124.82,7.3]
[1743472080882,0.03,124.86,124.82,7.3]
[1743472083197,0.03,124.86,124.81,1.6542]
[1743472083377,0.03,124.86,124.82,7.3]
[1743472090898,0.03,124.86,124.81,7.3]
[1743472091697,8.0389,124.86,124.81,7.3]
[1743472092381,8.0389,124.86,124.81,7.363]
[1743472092382,9.3115,124.86,124.81,7.363]
[1743472092588,29.3339,124.86,124.81,7.363]
[1743472093696,28.0358,124.84,124.81,7.363]
[1743472093878,28.0358,124.84,124.81,0.063]
[1743472094698,8.0102,124.84,124.81,0.063]
[1743472096801,8.0098,124.85,124.81,0.063]
[1743472097001,8.0098,124.85,124.81,7.363]
[1743472097503,8.0392,124.86,124.81,7.363]
[1743472097895,0.03,124.86,124.81,7.363]
[1743472103697,0.03,124.86,124.81,0.063]
[1743472104989,28.0613,124.86,124.81,0.063]
[1743472111993,0.28432314,124.85,124.81,0.063]
[1743472113292,8.0102,124.84,124.81,0.063]
[1743472115704,8.0098,124.85,124.81,0.063]
[1743472116814,8.0392,124.86,124.81,0.063]
[1743472118814,0.03,124.86,124.84,1.5273]
[1743472119000,0.03,124.86,124.85,7.3]
[1743472126712,0.03,124.86,124.85,25.94964886]
[1743472127618,0.03,124.86,124.85,33.95924886]
[1743472128116,0.03,124.86,124.85,34.243572]
[1743472128323,0.03,124.86,124.85,26.233972]
[1743472129024,0.03,124.86,124.85,34.243572]
[1743472131836,0.03,124.86,124.82,237.0203]
[1743472132033,0.03,124.86,124.83,7.28]
[1743472139616,0.03,124.86,124.81,81.563]
[1743472139834,0.03,124.86,124.81,0.063]
[1743472140616,0.28432314,124.85,124.81,0.063]
[1743472141322,0.28432314,124.82,124.81,0.063]
[1743472141634,0.28432314,124.82,124.76,7.343]
[1743472142240,29.3084,124.84,124.76,7.343]
[1743472142423,9.2828,124.84,124.76,7.343]
[1743472142612,8.0102,124.84,124.76,25.99264886]
[1743472142820,8.0102,124.84,124.77,1.5058]
[1743472143216,14.6542,124.86,124.79,20.0]
[1743472143453,0.28432314,124.85,124.8,7.28]
[1743472145248,8.0395,124.86,124.8,7.28]
[1743472146051,0.03,124.86,124.8,7.28]
[1743472152050,0.03,124.86,124.8,7.343]
[1743472152551,0.03,124.86,124.8,15.3556]
[1743472152751,0.03,124.86,124.83,20.0]
[1743472152944,0.03,124.86,124.84,7.28]
[1743472159853,0.03,124.86,124.83,7.28]
[1743472166440,0.31432314,124.86,124.81,0.063]
[1743472167737,8.0096,124.85,124.81,0.063]
[1743472168555,28.0336,124.85,124.81,0.063]
[1743472169253,8.0391,124.86,124.81,0.063]
[1743472169848,20.33672314,124.86,124.81,0.063]
[1743472170248,20.0,124.83,124.81,0.063]
[1743472170445,0.28432314,124.82,124.8,0.063]
[1743472171850,8.0121,124.81,124.8,0.063]
[1743472175754,8.0421,124.81,124.8,0.063]
[1743472176575,8.32642314,124.81,124.8,0.063]
[1743472177060,0.28432314,124.8,124.77,7.28]
[1743472178681,8.0134,124.79,124.77,7.28]
[1743472180889,8.0134,124.79,124.76,0.063]
[1743472181055,8.0134,124.79,124.76,7.343]
[1743472184383,28.047,124.79,124.76,7.343]
[1743472184977,0.14216157,124.78,124.76,7.343]
[1743472186059,8.0147,124.77,124.76,7.343]